fUST/lending_fUST_20250727
["ID","MTS","AMOUNT","RATE_DAILY","PERIOD"]
[375218069,1753589446270,-1821.18,0.00019726,2]
[375218071,1753589446280,-807.39,0.00019726,2]
[375218073,1753589446289,-460.0,0.00019726,2]
[375218075,1753589446298,-460.0,0.00019726,2]
[375218077,1753589446309,-460.0,0.00019726,2]
[375218079,1753589446318,-845.12,0.00019726,2]
[375218081,1753589446327,-460.0,0.00019726,2]
[375218083,1753589446336,-460.0,0.00019726,2]
[375218085,1753589446346,-460.0,0.00019726,2]
[375218087,1753589446358,-348.26216448,0.00019726,2]
[375218100,1753589446528,-111.73783552,0.00019726,2]
[375218101,1753589446538,-460.0,0.00019726,2]
[375218102,1753589446551,-460.0,0.00019726,2]
[375218103,1753589446561,-460.0,0.00019726,2]
[375218104,1753589446571,-460.0,0.00019726,2]
[375218105,1753589446580,-460.0,0.00019726,2]
[375218106,1753589446590,-460.0,0.00019726,2]
[375218107,1753589446599,-3066.41,0.00019726,2]
[375218108,1753589446608,-460.0,0.00019726,2]
[375218109,1753589446618,-460.0,0.00019726,2]
[375218111,1753589446627,-467.69,0.00019726,2]
[375218113,1753589446636,-460.0,0.00019726,2]
[375218115,1753589446646,-460.0,0.00019726,2]
[375218117,1753589446655,-505.09,0.00019726,2]
[375218119,1753589446664,-460.0,0.00019726,2]
[375218121,1753589446674,-460.0,0.00019726,2]
[375218123,1753589446683,-460.0,0.00019726,2]
[375218125,1753589446692,-465.21868945,0.00019726,2]
[375218127,1753589446702,-559.97,0.00019726,2]
[375218129,1753589446712,-460.0,0.00019726,2]
[375218130,1753589446722,-460.0,0.00019726,2]
[375218132,1753589446731,-460.0,0.00019726,2]
[375218134,1753589446741,-460.0,0.00019726,2]
[375218136,1753589446750,-460.0,0.00019726,2]
[375218138,1753589446760,-460.0,0.00019726,2]
[375218140,1753589446769,-460.0,0.00019726,2]
[375218142,1753589446778,-460.0,0.00019726,2]
[375218144,1753589446788,-460.0,0.00019726,2]
[375218146,1753589446798,-460.0,0.00019726,2]
[375218148,1753589446807,-526.95,0.00019726,2]
[375218150,1753589446817,-460.0,0.00019726,2]
[375218152,1753589446826,-460.0,0.00019726,2]
[375218154,1753589446835,-460.0,0.00019726,2]
[375218156,1753589446844,-792.91,0.00019726,2]
[375218158,1753589446854,-460.0,0.00019726,2]
[375218160,1753589446863,-460.0,0.00019726,2]
[375218162,1753589446872,-460.0,0.00019726,2]
[375218164,1753589446881,-460.0,0.00019726,2]
[375218166,1753589446890,-183.39793575,0.00019726,2]
[375218168,1753589446899,-585.35500086,0.00019726,2]
[375218170,1753589446909,-460.0,0.00019726,2]
[375218171,1753589446918,-460.0,0.00019726,2]
[375218173,1753589446928,-460.0,0.00019726,2]
[375218175,1753589446937,-460.0,0.00019726,2]
[375218177,1753589446946,-464.31744254,0.00019726,2]
[375218179,1753589446955,-460.0,0.00019726,2]
[375218181,1753589446965,-839.4,0.00019726,2]
[375218183,1753589446974,-668.15,0.00019726,2]
[375218185,1753589446983,-460.0,0.00019726,2]
[375218187,1753589446992,-460.0,0.00019726,2]
[375218189,1753589447001,-460.0,0.00019726,2]
[375218191,1753589447011,-460.0,0.00019726,2]
[375218193,1753589447020,-460.0,0.00019726,2]
[375218195,1753589447029,-460.0,0.00019726,2]
[375218197,1753589447038,-1889.59,0.00019726,2]
[375218199,1753589447048,-460.0,0.00019726,2]
[375218201,1753589447058,-460.0,0.00019726,2]
[375218203,1753589447068,-685.05,0.00019726,2]
[375218205,1753589447078,-224.91215079,0.00019726,2]
[375218207,1753589447087,-460.0,0.00019726,2]
[375218209,1753589447097,-460.0,0.00019726,2]
[375218211,1753589447106,-460.0,0.00019726,2]
[375218213,1753589447115,-460.0,0.00019726,2]
[375218215,1753589447125,-460.0,0.00019726,2]
[375218217,1753589447135,-460.0,0.00019726,2]
[375218219,1753589447145,-521.17,0.00019726,2]
[375218221,1753589447154,-460.0,0.00019726,2]
[375218223,1753589447163,-603.99,0.00019726,2]
[375218225,1753589447173,-497.39975557,0.00019726,2]
[375218227,1753589447183,-469.92,0.00019726,2]
[375218229,1753589447192,-460.0,0.00019726,2]
[375218231,1753589447201,-729.56,0.00019726,2]
[375218233,1753589447210,-555.53,0.00019726,2]
[375218235,1753589447220,-460.0,0.00019726,2]
[375218237,1753589447229,-460.0,0.00019726,2]
[375218239,1753589447237,-460.0,0.00019726,2]
[375218241,1753589447246,-460.0,0.00019726,2]
[375218243,1753589447255,-460.0,0.00019726,2]
[375218245,1753589447264,-460.0,0.00019726,2]
[375218247,1753589447274,-460.0,0.00019726,2]
[375218249,1753589447283,-460.0,0.00019726,2]
[375218251,1753589447293,-460.0,0.00019726,2]
[375218253,1753589447302,-460.0,0.00019726,2]
[375218255,1753589447312,-2701.43,0.00019726,2]
[375218257,1753589447321,-776.0,0.00019726,2]
[375218258,1753589447330,-4829.23,0.00019726,2]
[375218260,1753589447339,-460.0,0.00019726,2]
[375218262,1753589447348,-735.29,0.00019726,2]
[375218264,1753589447357,-460.0,0.00019726,2]
[375218266,1753589447367,-460.0,0.00019726,2]
[375218268,1753589447376,-217.43371302,0.00019726,2]
[375218270,1753589447385,-930.6,0.00019726,2]
[375218272,1753589447394,-460.0,0.00019726,2]
[375218274,1753589447403,-945.52,0.00019726,2]
[375218276,1753589447412,-460.0,0.00019726,2]
[375218278,1753589447422,-460.0,0.00019726,2]
[375218280,1753589447431,-460.0,0.00019726,2]
[375218282,1753589447440,-665.33,0.00019726,2]
[375218284,1753589447449,-603.09,0.00019726,2]
[375218286,1753589447459,-460.0,0.00019726,2]
[375218288,1753589447469,-1000.32,0.00019726,2]
[375218290,1753589447479,-460.0,0.00019726,2]
[375218292,1753589447489,-460.0,0.00019726,2]
[375218294,1753589447500,-620.16,0.00019726,2]
[375218296,1753589447510,-460.0,0.00019726,2]
[375218298,1753589447519,-460.0,0.00019726,2]
[375218300,1753589447528,-655.53,0.00019726,2]
[375218302,1753589447537,-460.0,0.00019726,2]
[375218304,1753589447547,-460.0,0.00019726,2]
[375218306,1753589447556,-460.0,0.00019726,2]
[375218308,1753589447566,-463.05724323,0.00019726,2]
[375218310,1753589447575,-460.0,0.00019726,2]
[375218312,1753589447584,-460.0,0.00019726,2]
[375218314,1753589447594,-2186.89,0.00019726,2]
[375218316,1753589447603,-460.0,0.00019726,2]
[375218318,1753589447612,-460.0,0.00019726,2]
[375218320,1753589447622,-460.0,0.00019726,2]
[375218322,1753589447631,-460.0,0.00019726,2]
[375218324,1753589447641,-516.85,0.00019726,2]
[375218335,1753589447650,-460.0,0.00019726,2]
[375218337,1753589447751,-460.0,0.00019726,2]
[375218339,1753589447761,-460.0,0.00019726,2]
[375218341,1753589447770,-460.0,0.00019726,2]
[375218343,1753589447780,-460.0,0.00019726,2]
[375218345,1753589447789,-460.0,0.00019726,2]
[375218347,1753589447800,-460.0,0.00019726,2]
[375218349,1753589447810,-460.0,0.00019726,2]
[375218351,1753589447820,-460.0,0.00019726,2]
[375218353,1753589447830,-460.0,0.00019726,2]
[375218355,1753589447839,-460.0,0.00019726,2]
[375218357,1753589447849,-460.0,0.00019726,2]
[375218359,1753589447861,-460.0,0.00019726,2]
[375218361,1753589447870,-460.0,0.00019726,2]
[375218363,1753589447879,-1391.16,0.00019726,2]
[375218365,1753589447889,-460.0,0.00019726,2]
[375218367,1753589447898,-501.84,0.00019726,2]
[375218369,1753589447908,-460.0,0.00019726,2]
[375218371,1753589447918,-460.0,0.00019726,2]
[375218373,1753589447927,-713.53,0.00019726,2]
[375218375,1753589447936,-460.0,0.00019726,2]
[375218377,1753589447946,-460.0,0.00019726,2]
[375218379,1753589447955,-460.0,0.00019726,2]
[375218381,1753589447964,-573.09,0.00019726,2]
[375218383,1753589447973,-460.0,0.00019726,2]
[375218385,1753589447983,-460.0,0.00019726,2]
[375218387,1753589447992,-460.0,0.00019726,2]
[375218389,1753589448001,-460.0,0.00019726,2]
[375218391,1753589448011,-830.42,0.00019726,2]
[375218393,1753589448020,-460.0,0.00019726,2]
[375218395,1753589448030,-468.25,0.00019726,2]
[375218397,1753589448039,-460.0,0.00019726,2]
[375218399,1753589448049,-460.0,0.00019726,2]
[375218401,1753589448058,-460.0,0.00019726,2]
[375218403,1753589448068,-460.0,0.00019726,2]
[375218404,1753589448077,-460.0,0.00019726,2]
[375218406,1753589448086,-880.58,0.00019726,2]
[375218408,1753589448096,-460.0,0.00019726,2]
[375218410,1753589448105,-1468.31,0.00019726,2]
[375218412,1753589448115,-460.0,0.00019726,2]
[375218414,1753589448124,-460.0,0.00019726,2]
[375218416,1753589448134,-630.25,0.00019726,2]
[375218419,1753589448144,-2341.47,0.00019726,2]
[375218421,1753589448153,-460.0,0.00019726,2]
[375218423,1753589448162,-623.3,0.00019726,2]
[375218425,1753589448172,-662.9,0.00019726,2]
[375218427,1753589448181,-460.0,0.00019726,2]
[375218429,1753589448190,-460.0,0.00019726,2]
[375218430,1753589448199,-460.0,0.00019726,2]
[375218432,1753589448209,-174.78782039,0.000198,2]
[375218434,1753589448219,-4768.08728707,0.00019866,2]
[375218436,1753589448228,-151.0,0.000199,2]
[375218439,1753589448238,-1500.0,0.00019968,2]
[375218440,1753589448247,-1000.0,0.00019968,2]
[375218443,1753589448257,-1500.0,0.00019968,2]
[375218445,1753589448267,-1000.0,0.00019968,2]
[375218447,1753589448277,-1000.0,0.00019968,2]
[375218449,1753589448286,-458.10455551,0.00019968,2]
[375218451,1753589448297,-500.0,0.00019973,2]
[375218453,1753589448306,-466.95358508,0.00019979,2]
[375218454,1753589448316,-460.0,0.00019979,2]
[375218457,1753589448326,-460.0,0.00019979,2]
[375218458,1753589448336,-2042.0,0.00019979,2]
[375218460,1753589448345,-1446.08,0.00019979,2]
[375218462,1753589448355,-460.0,0.00019979,2]
[375218464,1753589448364,-668.49,0.00019979,2]
[375218466,1753589448374,-3055.8,0.0002,2]
[375218468,1753589448383,-1199.48,0.0002,2]
[375218470,1753589448392,-460.0,0.0002,2]
[375218472,1753589448401,-1298.09,0.0002,2]
[375218474,1753589448411,-560.15,0.0002,2]
[375218476,1753589448421,-460.0,0.0002,2]
[375218478,1753589448431,-245.36988716,0.0002,2]
[375218480,1753589448441,-460.0,0.0002,2]
[375218482,1753589448451,-202.86026692,0.0002,2]
[375218484,1753589448460,-2185.81,0.0002,2]
[375218486,1753589448473,-460.0,0.0002,2]
[375218489,1753589448483,-460.0,0.0002,2]
[375218490,1753589448493,-580.59,0.0002,2]
[375218492,1753589448502,-460.0,0.0002,2]
[375218495,1753589448512,-460.0,0.0002,2]
[375218497,1753589448521,-460.0,0.0002,2]
[375218499,1753589448531,-929.08,0.0002,2]
[375218501,1753589448540,-460.0,0.0002,2]
[375218503,1753589448550,-658.12,0.0002,2]
[375218505,1753589448559,-460.0,0.0002,2]
[375218507,1753589448569,-611.52,0.0002,2]
[375218509,1753589448579,-460.0,0.0002,2]
[375218511,1753589448589,-460.0,0.0002,2]
[375218513,1753589448598,-335.90476564,0.0002,2]
[375218515,1753589448608,-461.87,0.0002,2]
[375218517,1753589448618,-460.0,0.0002,2]
[375218518,1753589448627,-460.0,0.0002,2]
[375218520,1753589448637,-460.0,0.0002,2]
[375218523,1753589448649,-460.0,0.0002,2]
[375218525,1753589448666,-460.0,0.0002,2]
[375218528,1753589448681,-460.0,0.0002,2]
[375218530,1753589448694,-807.39,0.0002,2]
[375218533,1753589448710,-1821.18,0.0002,2]
[375218535,1753589448724,-460.0,0.0002,2]
[375218538,1753589448739,-460.0,0.0002,2]
[375218540,1753589448756,-460.0,0.0002,2]
[375218543,1753589448769,-845.12,0.0002,2]
[375218545,1753589448781,-460.0,0.0002,2]
[375218547,1753589448795,-460.0,0.0002,2]
[375218548,1753589448809,-460.0,0.0002,2]
[375218549,1753589448824,-460.0,0.0002,2]
[375218550,1753589448838,-460.0,0.0002,2]
[375218551,1753589448853,-460.0,0.0002,2]
[375218552,1753589448867,-460.0,0.0002,2]
[375218553,1753589448883,-3066.41,0.0002,2]
[375218554,1753589448898,-460.0,0.0002,2]
[375218555,1753589448911,-460.0,0.0002,2]
[375218556,1753589448925,-467.69,0.0002,2]
[375218557,1753589448939,-460.0,0.0002,2]
[375218558,1753589448954,-460.0,0.0002,2]
[375218559,1753589448967,-460.0,0.0002,2]
[375218560,1753589448980,-460.0,0.0002,2]
[375218561,1753589448991,-473.06814664,0.0002,2]
[375218562,1753589449003,-559.97,0.0002,2]
[375218563,1753589449020,-460.0,0.0002,2]
[375218564,1753589449032,-460.0,0.0002,2]
[375218565,1753589449042,-460.0,0.0002,2]
[375218566,1753589449055,-460.0,0.0002,2]
[375218567,1753589449069,-460.0,0.0002,2]
[375218568,1753589449080,-460.0,0.0002,2]
[375218569,1753589449091,-460.0,0.0002,2]
[375218570,1753589449109,-460.0,0.0002,2]
[375218571,1753589449121,-460.0,0.0002,2]
[375218572,1753589449134,-526.95,0.0002,2]
[375218573,1753589449146,-462.61141262,0.0002,2]
[375218574,1753589449162,-460.0,0.0002,2]
[375218575,1753589449175,-460.0,0.0002,2]
[375218577,1753589449188,-792.91,0.0002,2]
[375218580,1753589449200,-460.0,0.0002,2]
[375218582,1753589449213,-460.0,0.0002,2]
[375218584,1753589449225,-460.0,0.0002,2]
[375218586,1753589449239,-839.4,0.0002,2]
[375218588,1753589449254,-668.15,0.0002,2]
[375218591,1753589449268,-460.0,0.0002,2]
[375218593,1753589449281,-460.0,0.0002,2]
[375218595,1753589449296,-460.0,0.0002,2]
[375218598,1753589449311,-460.0,0.0002,2]
[375218600,1753589449323,-460.0,0.0002,2]
[375218602,1753589449335,-1889.59,0.0002,2]
[375218604,1753589449348,-460.0,0.0002,2]
[375218607,1753589449360,-460.0,0.0002,2]
[375218609,1753589449372,-685.05,0.0002,2]
[375218611,1753589449384,-460.0,0.0002,2]
[375218613,1753589449395,-151.0,0.0002,2]
[375218616,1753589449408,-460.0,0.0002,2]
[375218618,1753589449420,-460.0,0.0002,2]
[375218620,1753589449433,-460.0,0.0002,2]
[375218622,1753589449445,-389.09419639,0.0002,2]
[375218625,1753589449457,-151.0,0.0002,2]
[375218627,1753589449469,-521.17,0.0002,2]
[375218629,1753589449482,-460.0,0.0002,2]
[375218631,1753589449494,-603.99,0.0002,2]
[375218633,1753589449506,-469.92,0.0002,2]
[375218636,1753589449519,-460.0,0.0002,2]
[375218638,1753589449530,-151.0,0.0002,2]
[375218639,1753589449540,-729.56,0.0002,2]
[375218641,1753589449550,-555.53,0.0002,2]
[375218643,1753589449560,-460.0,0.0002,2]
[375218645,1753589449570,-151.0,0.0002,2]
[375218647,1753589449579,-460.0,0.0002,2]
[375218649,1753589449589,-460.0,0.0002,2]
[375218651,1753589449598,-460.0,0.0002,2]
[375218653,1753589449608,-460.0,0.0002,2]
[375218655,1753589449617,-460.0,0.0002,2]
[375218657,1753589449626,-460.0,0.0002,2]
[375218659,1753589449635,-460.0,0.0002,2]
[375218661,1753589449644,-460.0,0.0002,2]
[375218663,1753589449654,-2701.43,0.0002,2]
[375218665,1753589449663,-776.0,0.0002,2]
[375218667,1753589449672,-4829.23,0.0002,2]
[375218669,1753589449682,-460.0,0.0002,2]
[375218671,1753589449692,-735.29,0.0002,2]
[375218673,1753589449701,-460.0,0.0002,2]
[375218675,1753589449710,-460.0,0.0002,2]
[375218677,1753589449720,-930.6,0.0002,2]
[375218679,1753589449730,-945.52,0.0002,2]
[375218698,1753589449739,-460.0,0.0002,2]
[375218701,1753589449924,-596.42531374,0.0002,2]
[375218703,1753589449937,-460.0,0.0002,2]
[375218706,1753589449947,-665.33,0.0002,2]
[375218707,1753589449956,-603.09,0.0002,2]
[375218709,1753589449966,-460.0,0.0002,2]
[375218711,1753589449976,-1000.32,0.0002,2]
[375218713,1753589449985,-460.0,0.0002,2]
[375218715,1753589449995,-620.16,0.0002,2]
[375218718,1753589450005,-470.68193488,0.0002,2]
[375218719,1753589450015,-460.0,0.0002,2]
[375218721,1753589450024,-655.53,0.0002,2]
[375218723,1753589450033,-460.0,0.0002,2]
[375218725,1753589450042,-460.0,0.0002,2]
[375218727,1753589450052,-443.22857386,0.0002,2]
[375218729,1753589450061,-460.0,0.0002,2]
[375218731,1753589450071,-2186.89,0.0002,2]
[375218733,1753589450080,-460.0,0.0002,2]
[375218735,1753589450091,-460.0,0.0002,2]
[375218737,1753589450100,-460.0,0.0002,2]
[375218739,1753589450109,-516.85,0.0002,2]
[375218741,1753589450119,-460.0,0.0002,2]
[375218743,1753589450128,-460.0,0.0002,2]
[375218745,1753589450140,-151.0,0.0002,2]
[375218747,1753589450152,-460.0,0.0002,2]
[375218749,1753589450161,-460.0,0.0002,2]
[375218751,1753589450170,-460.0,0.0002,2]
[375218753,1753589450179,-460.0,0.0002,2]
[375218755,1753589450191,-460.0,0.0002,2]
[375218757,1753589450200,-460.0,0.0002,2]
[375218759,1753589450210,-460.0,0.0002,2]
[375218761,1753589450219,-460.0,0.0002,2]
[375218763,1753589450228,-154.39640782,0.0002,2]
[375218765,1753589450238,-460.0,0.0002,2]
[375218767,1753589450247,-1391.16,0.0002,2]
[375218769,1753589450256,-460.0,0.0002,2]
[375218771,1753589450266,-460.0,0.0002,2]
[375218773,1753589450275,-501.84,0.0002,2]
[375218775,1753589450284,-460.0,0.0002,2]
[375218777,1753589450294,-460.0,0.0002,2]
[375218779,1753589450303,-713.53,0.0002,2]
[375218781,1753589450313,-460.0,0.0002,2]
[375218783,1753589450322,-460.0,0.0002,2]
[375218784,1753589450331,-460.0,0.0002,2]
[375218787,1753589450341,-151.0,0.0002,2]
[375218788,1753589450350,-460.0,0.0002,2]
[375218790,1753589450360,-573.09,0.0002,2]
[375218792,1753589450369,-249.91000003,0.0002,2]
[375218794,1753589450379,-460.0,0.0002,2]
[375218796,1753589450388,-460.0,0.0002,2]
[375218798,1753589450398,-830.42,0.0002,2]
[375218800,1753589450407,-460.0,0.0002,2]
[375218802,1753589450417,-468.25,0.0002,2]
[375218804,1753589450426,-460.0,0.0002,2]
[375218806,1753589450436,-467.62948119,0.0002,2]
[375218808,1753589450445,-460.0,0.0002,2]
[375218810,1753589450454,-460.0,0.0002,2]
[375218812,1753589450463,-460.0,0.0002,2]
[375218814,1753589450472,-880.58,0.0002,2]
[375218816,1753589450482,-1468.31,0.0002,2]
[375218818,1753589450491,-151.0,0.0002,2]
[375218820,1753589450500,-151.0,0.0002,2]
[375218822,1753589450509,-460.0,0.0002,2]
[375218824,1753589450518,-630.25,0.0002,2]
[375218826,1753589450527,-460.0,0.0002,2]
[375218828,1753589450537,-151.960606,0.0002,2]
[375218830,1753589450547,-2341.47,0.0002,2]
[375218832,1753589450557,-151.0,0.0002,2]
[375218834,1753589450567,-662.9,0.0002,2]
[375218836,1753589450576,-623.3,0.0002,2]
[375218838,1753589450585,-460.0,0.0002,2]
[375218840,1753589450596,-460.0,0.0002,2]
[375218842,1753589450606,-4768.08728707,0.00020107,2]
[375218844,1753589450615,-171.01031079,0.00020166,2]
[375218846,1753589450625,-190.658477,0.00020187,2]
[375218848,1753589450635,-160.0,0.00020222,2]
[375218850,1753589450645,-840.75038169,0.00020222,2]
[375218852,1753589450654,-160.0,0.00020222,2]
[375218854,1753589450663,-160.0,0.00020222,2]
[375218856,1753589450673,-160.0,0.00020222,2]
[375218858,1753589450682,-231.30466539,0.00020222,2]
[375218860,1753589450691,-477.07289566,0.00020222,2]
[375218862,1753589450701,-160.0,0.00020222,2]
[375218864,1753589450710,-160.0,0.00020222,2]
[375218865,1753589450719,-151.0,0.00020222,2]
[375218867,1753589450729,-151.0,0.00020222,2]
[375218869,1753589450738,-151.0,0.00020222,2]
[375218871,1753589450747,-151.0,0.00020222,2]
[375218873,1753589450756,-153.106918,0.00020222,2]
[375218875,1753589450766,-151.0,0.00020222,2]
[375218877,1753589450775,-151.0,0.00020222,2]
[375218879,1753589450784,-151.0,0.00020222,2]
[375218881,1753589450795,-151.0,0.00020222,2]
[375218883,1753589450804,-272.570894,0.00020222,2]
[375218885,1753589450813,-268.672107,0.00020222,2]
[375218887,1753589450823,-214.84090509,0.00020222,2]
[375218889,1753589450832,-526.50274803,0.00020222,2]
[375218891,1753589450841,-216.01841554,0.00020222,2]
[375218893,1753589450850,-12632.25855046,0.00020222,2]
[375218895,1753589450859,-1501.2,0.00020238,3]
[375218897,1753589450868,-750.6,0.00020238,3]
[375218899,1753589450877,-375.3,0.00020238,3]
[375218901,1753589450886,-460.0,0.00020253,2]
[375218903,1753589450895,-460.0,0.00020253,2]
[375218905,1753589450903,-151.0,0.00020253,2]
[375218907,1753589450912,-151.0,0.00020253,2]
[375218909,1753589450922,-151.0,0.00020253,2]
[375218911,1753589450931,-151.0,0.00020253,2]
[375218913,1753589450940,-2042.0,0.00020253,2]
[375218915,1753589450949,-1446.08,0.00020253,2]
[375218917,1753589450959,-460.0,0.00020253,2]
[375218919,1753589450968,-668.49,0.00020253,2]
[375218921,1753589450978,-320.0,0.00020266,2]
[375218923,1753589450988,-1500.0,0.00020268,2]
[375218925,1753589450998,-1500.0,0.00020268,2]
[375218927,1753589451007,-3055.8,0.00020273,2]
[375218929,1753589451017,-1199.48,0.00020273,2]
[375218931,1753589451026,-460.0,0.00020273,2]
[375218933,1753589451036,-1298.09,0.00020273,2]
[375218935,1753589451045,-560.15,0.00020273,2]
[375218937,1753589451055,-460.0,0.00020273,2]
[375218939,1753589451064,-2185.81,0.00020273,2]
[375218941,1753589451074,-460.0,0.00020273,2]
[375218943,1753589451083,-460.0,0.00020273,2]
[375218945,1753589451092,-580.59,0.00020273,2]
[375218947,1753589451102,-460.0,0.00020273,2]
[375218949,1753589451111,-460.0,0.00020273,2]
[375218951,1753589451120,-164.22329062,0.00020273,2]
[375218953,1753589451129,-929.08,0.00020273,2]
[375218955,1753589451139,-460.0,0.00020273,2]
[375218957,1753589451148,-658.12,0.00020273,2]
[375218959,1753589451157,-611.52,0.00020273,2]
[375218961,1753589451166,-461.87,0.00020273,2]
[375218963,1753589451175,-460.0,0.00020273,2]
[375218965,1753589451185,-460.0,0.00020273,2]
[375218967,1753589451194,-199.5136134,0.00020273,2]
[375218969,1753589451203,-460.0,0.00020273,2]
[375218971,1753589451212,-807.39,0.00020273,2]
[375218973,1753589451221,-1821.18,0.00020273,2]
[375218975,1753589451230,-464.91665648,0.00020273,2]
[375218977,1753589451239,-460.0,0.00020273,2]
[375218979,1753589451248,-845.12,0.00020273,2]
[375218981,1753589451257,-460.0,0.00020273,2]
[375218983,1753589451266,-151.0,0.00020273,2]
[375218985,1753589451275,-460.0,0.00020273,2]
[375218986,1753589451285,-151.0,0.00020273,2]
[375218988,1753589451295,-460.0,0.00020273,2]
[375218990,1753589451303,-460.0,0.00020273,2]
[375218992,1753589451312,-3066.41,0.00020273,2]
[375218994,1753589451322,-460.0,0.00020273,2]
[375218996,1753589451331,-467.69,0.00020273,2]
[375218998,1753589451340,-151.0,0.00020273,2]
[375219000,1753589451349,-460.0,0.00020273,2]
[375219002,1753589451359,-454.00162627,0.00020273,2]
[375219004,1753589451368,-460.0,0.00020273,2]
[375219006,1753589451377,-152.97131,0.00020273,2]
[375219008,1753589451386,-151.0,0.00020273,2]
[375219010,1753589451395,-559.97,0.00020273,2]
[375219012,1753589451404,-151.0,0.00020273,2]
[375219014,1753589451413,-460.0,0.00020273,2]
[375219016,1753589451423,-460.0,0.00020273,2]
[375219018,1753589451432,-460.0,0.00020273,2]
[375219020,1753589451441,-460.0,0.00020273,2]
[375219022,1753589451450,-460.0,0.00020273,2]
[375219024,1753589451460,-151.0,0.00020273,2]
[375219026,1753589451470,-460.0,0.00020273,2]
[375219028,1753589451482,-460.0,0.00020273,2]
[375219030,1753589451492,-151.0,0.00020273,2]
[375219033,1753589451502,-526.95,0.00020273,2]
[375219035,1753589451511,-460.0,0.00020273,2]
[375219036,1753589451522,-460.0,0.00020273,2]
[375219037,1753589451531,-792.91,0.00020273,2]
[375219038,1753589451540,-460.0,0.00020273,2]
[375219039,1753589451552,-490.99361653,0.00020273,2]
[375219040,1753589451562,-839.4,0.00020273,2]
[375219041,1753589451571,-668.15,0.00020273,2]
[375219042,1753589451580,-460.0,0.00020273,2]
[375219043,1753589451589,-185.02,0.00020273,2]
[375219044,1753589451599,-460.0,0.00020273,2]
[375219045,1753589451608,-460.0,0.00020273,2]
[375219046,1753589451617,-460.0,0.00020273,2]
[375219047,1753589451626,-1889.59,0.00020273,2]
[375219048,1753589451636,-460.0,0.00020273,2]
[375219049,1753589451645,-211.06454854,0.00020273,2]
[375219051,1753589451655,-685.05,0.00020273,2]
[375219053,1753589451664,-460.0,0.00020273,2]
[375219055,1753589451674,-460.0,0.00020273,2]
[375219057,1753589451683,-460.0,0.00020273,2]
[375219059,1753589451693,-521.17,0.00020273,2]